[Event "Titled Tuesday Blitz March 22 Late 2022"]
[White "Avazkhonov, Alikhon"]
[Black "Vovk, Orest"]
[WhiteFideId "14208504"]
[BlackFideId "14113490"]
[WhiteElo "1739"]
[BlackElo "2203"]
[Result "1-0"]
[Round "11"]
[TimeControl "180+1"]
[Date "2022.03.22"]
[WhiteClock "0:00:04"]
[BlackClock "0:00:34"]

1. f4 {[%clk 0:02:56]}  Nc6 {[%clk 0:03:00]} 2. Nf3 {[%clk 0:02:56]}  d6 {[%clk 0:02:54]} 3. g3 {[%clk 0:02:54]}  Bf5 {[%clk 0:02:48]} 4. Bg2 {[%clk 0:02:51]}  Qd7 {[%clk 0:02:48]} 5. O-O {[%clk 0:02:48]}  Bh3 {[%clk 0:02:31]} 6. d3 {[%clk 0:02:45]}  Bxg2 {[%clk 0:02:30]} 7. Kxg2 {[%clk 0:02:46]}  O-O-O {[%clk 0:02:30]} 8. e4 {[%clk 0:02:46]}  h5 {[%clk 0:02:30]} 9. h3 {[%clk 0:02:43]}  h4 {[%clk 0:02:29]} 10. g4 {[%clk 0:02:42]}  Nf6 {[%clk 0:02:29]} 11. Nc3 {[%clk 0:02:19]}  Nxg4 {[%clk 0:01:51]} 12. hxg4 {[%clk 0:02:03]}  Qxg4+ {[%clk 0:01:52]} 13. Kh1 {[%clk 0:01:39]}  Qh5 {[%clk 0:01:47]} 14. Be3 {[%clk 0:01:22]}  e5 {[%clk 0:01:43]} 15. Ng5 {[%clk 0:01:03]}  f6 {[%clk 0:01:40]} 16. Qxh5 {[%clk 0:00:54]}  Rxh5 {[%clk 0:01:36]} 17. Ne6 {[%clk 0:00:55]}  Re8 {[%clk 0:01:36]} 18. f5 {[%clk 0:00:52]}  g5 {[%clk 0:01:27]} 19. Nd5 {[%clk 0:00:35]}  Be7 {[%clk 0:01:26]} 20. Nexc7 {[%clk 0:00:27]}  Rg8 {[%clk 0:01:22]} 21. Nb5 {[%clk 0:00:24]}  Kd7 {[%clk 0:01:20]} 22. Rg1 {[%clk 0:00:20]}  g4 {[%clk 0:01:20]} 23. Kh2 {[%clk 0:00:18]}  a6 {[%clk 0:01:15]} 24. Nbc3 {[%clk 0:00:16]}  Bd8 {[%clk 0:01:14]} 25. Rg2 {[%clk 0:00:16]}  g3+ {[%clk 0:01:11]} 26. Kh3 {[%clk 0:00:16]}  b5 {[%clk 0:01:09]} 27. Ne2 {[%clk 0:00:13]}  Rh7 {[%clk 0:01:05]} 28. Ng1 {[%clk 0:00:14]}  Rh5 {[%clk 0:00:56]} 29. Nf3 {[%clk 0:00:14]}  Rh7 {[%clk 0:00:56]} 30. Rh1 {[%clk 0:00:13]}  Rgh8 {[%clk 0:00:54]} 31. Rgg1 {[%clk 0:00:13]}  Be7 {[%clk 0:00:49]} 32. Kg2 {[%clk 0:00:12]}  Bd8 {[%clk 0:00:45]} 33. Rh3 {[%clk 0:00:12]}  Rg8 {[%clk 0:00:38]} 34. Rgh1 {[%clk 0:00:12]}  Rhg7 {[%clk 0:00:38]} 35. Rxh4 {[%clk 0:00:12]}  Ne7 {[%clk 0:00:39]} 36. Nxf6+ {[%clk 0:00:09]}  Kc6 {[%clk 0:00:39]} 37. Nxg8 {[%clk 0:00:10]}  Nxg8 {[%clk 0:00:39]} 38. Rh7 {[%clk 0:00:10]}  Rg4 {[%clk 0:00:39]} 39. Rf7 {[%clk 0:00:07]}  Bb6 {[%clk 0:00:40]} 40. Bxb6 {[%clk 0:00:06]}  Kxb6 {[%clk 0:00:41]} 41. Rh8 {[%clk 0:00:06]}  d5 {[%clk 0:00:40]} 42. exd5 {[%clk 0:00:06]}  Kc5 {[%clk 0:00:40]} 43. Rxg8 {[%clk 0:00:05]}  Rxg8 {[%clk 0:00:38]} 44. Rd7 {[%clk 0:00:05]}  Re8 {[%clk 0:00:37]} 45. f6 {[%clk 0:00:04]}  e4 {[%clk 0:00:38]} 46. f7 {[%clk 0:00:03]}  exf3+ {[%clk 0:00:38]} 47. Kxf3 {[%clk 0:00:04]}  Rf8 {[%clk 0:00:35]} 48. Kxg3 {[%clk 0:00:05]}  b4 {[%clk 0:00:35]} 49. Kf4 {[%clk 0:00:05]}  Rd8 {[%clk 0:00:34]} 50. Rxd8 {[%clk 0:00:04]} 1-0


[Site "https://www.chess.com"]

[Event "Titled Tuesday Blitz March 22 Late 2022"]
[White "Bernal Moro, Luis Javier"]
[Black "Borodavkin, Anatoly"]
[WhiteFideId "2200236"]
[BlackFideId "14150662"]
[WhiteElo "2373"]
[BlackElo "1845"]
[Result "1-0"]
[Round "11"]
[TimeControl "180+1"]
[Date "2022.03.22"]
[WhiteClock "0:01:04"]
[BlackClock "0:00:01"]

1. Nf3 {[%clk 0:02:57]}  Nc6 {[%clk 0:02:59]} 2. c4 {[%clk 0:02:54]}  e5 {[%clk 0:02:58]} 3. Nc3 {[%clk 0:02:54]}  d6 {[%clk 0:02:59]} 4. d4 {[%clk 0:02:53]}  exd4 {[%clk 0:02:57]} 5. Nxd4 {[%clk 0:02:52]}  Nf6 {[%clk 0:02:51]} 6. g3 {[%clk 0:02:51]}  Be7 {[%clk 0:02:47]} 7. Bg2 {[%clk 0:02:51]}  Nxd4 {[%clk 0:02:45]} 8. Qxd4 {[%clk 0:02:50]}  O-O {[%clk 0:02:46]} 9. O-O {[%clk 0:02:50]}  c6 {[%clk 0:02:25]} 10. Rd1 {[%clk 0:02:47]}  Be6 {[%clk 0:02:19]} 11. e4 {[%clk 0:02:34]}  Nd7 {[%clk 0:02:03]} 12. b3 {[%clk 0:02:27]}  Bf6 {[%clk 0:01:50]} 13. Qd2 {[%clk 0:02:26]}  Qa5 {[%clk 0:01:25]} 14. Bb2 {[%clk 0:02:26]}  Nc5 {[%clk 0:01:21]} 15. Rab1 {[%clk 0:02:17]}  d5 {[%clk 0:01:05]} 16. cxd5 {[%clk 0:02:14]}  cxd5 {[%clk 0:01:02]} 17. Nxd5 {[%clk 0:02:13]}  Qxd2 {[%clk 0:01:01]} 18. Nxf6+ {[%clk 0:02:13]}  gxf6 {[%clk 0:01:02]} 19. Rxd2 {[%clk 0:02:13]}  Kg7 {[%clk 0:00:47]} 20. e5 {[%clk 0:01:56]}  f5 {[%clk 0:00:44]} 21. Ba3 {[%clk 0:01:54]}  Rfc8 {[%clk 0:00:42]} 22. Rc2 {[%clk 0:01:50]}  Ne4 {[%clk 0:00:34]} 23. Rbc1 {[%clk 0:01:47]}  Rd8 {[%clk 0:00:29]} 24. f3 {[%clk 0:01:27]}  Nd2 {[%clk 0:00:08]} 25. Rd1 {[%clk 0:01:25]}  Nxb3 {[%clk 0:00:05]} 26. Rxd8 {[%clk 0:01:21]}  Rxd8 {[%clk 0:00:04]} 27. axb3 {[%clk 0:01:21]}  Bxb3 {[%clk 0:00:04]} 28. Rc1 {[%clk 0:01:17]}  Rd3 {[%clk 0:00:04]} 29. f4 {[%clk 0:01:12]}  b5 {[%clk 0:00:03]} 30. Bf1 {[%clk 0:01:07]}  Re3 {[%clk 0:00:01]} 31. Bc5 {[%clk 0:01:04]} 1-0


[Site "https://www.chess.com"]

[Event "Titled Tuesday Blitz March 22 Late 2022"]
[White "Bongo Akanga Ndjila, Barthelemy"]
[Black "Piliczewski, Bogusz"]
[WhiteFideId "10609431"]
[BlackFideId "1104144"]
[WhiteElo "1803"]
[BlackElo "1896"]
[Result "0-1"]
[Round "11"]
[TimeControl "180+1"]
[Date "2022.03.22"]
[WhiteClock "0:00:04"]
[BlackClock "0:00:05"]

1. d4 {[%clk 0:03:00]}  d5 {[%clk 0:02:59]} 2. c4 {[%clk 0:03:00]}  c6 {[%clk 0:02:59]} 3. Nc3 {[%clk 0:02:59]}  Nf6 {[%clk 0:03:00]} 4. Nf3 {[%clk 0:03:00]}  e6 {[%clk 0:03:00]} 5. e3 {[%clk 0:02:59]}  Nbd7 {[%clk 0:03:00]} 6. Qc2 {[%clk 0:02:56]}  Bd6 {[%clk 0:02:59]} 7. b3 {[%clk 0:02:55]}  O-O {[%clk 0:02:59]} 8. Be2 {[%clk 0:02:56]}  Qe7 {[%clk 0:02:59]} 9. O-O {[%clk 0:02:55]}  dxc4 {[%clk 0:02:42]} 10. bxc4 {[%clk 0:02:54]}  e5 {[%clk 0:02:43]} 11. d5 {[%clk 0:02:42]}  cxd5 {[%clk 0:02:36]} 12. cxd5 {[%clk 0:02:37]}  Nb6 {[%clk 0:02:34]} 13. e4 {[%clk 0:02:36]}  Bb4 {[%clk 0:02:23]} 14. Bg5 {[%clk 0:02:33]}  h6 {[%clk 0:02:19]} 15. Bxf6 {[%clk 0:02:31]}  Qxf6 {[%clk 0:02:19]} 16. Nb5 {[%clk 0:02:29]}  Bg4 {[%clk 0:01:49]} 17. Qd3 {[%clk 0:02:26]}  a6 {[%clk 0:01:43]} 18. Nc3 {[%clk 0:02:19]}  Rac8 {[%clk 0:01:35]} 19. Rfc1 {[%clk 0:02:13]}  Bxf3 {[%clk 0:01:29]} 20. Bxf3 {[%clk 0:02:11]}  Qg5 {[%clk 0:01:27]} 21. Ne2 {[%clk 0:02:08]}  Bd2 {[%clk 0:01:18]} 22. Rxc8 {[%clk 0:02:06]}  Rxc8 {[%clk 0:01:18]} 23. Rd1 {[%clk 0:02:06]}  Bb4 {[%clk 0:01:07]} 24. a3 {[%clk 0:02:01]}  Bd6 {[%clk 0:01:05]} 25. g3 {[%clk 0:01:58]}  Nc4 {[%clk 0:01:02]} 26. Ra1 {[%clk 0:01:50]}  Qe7 {[%clk 0:00:57]} 27. a4 {[%clk 0:01:47]}  Qd7 {[%clk 0:00:51]} 28. Kg2 {[%clk 0:01:43]}  Qc7 {[%clk 0:00:46]} 29. h3 {[%clk 0:01:41]}  Qa5 {[%clk 0:00:41]} 30. Bg4 {[%clk 0:01:39]}  Rc7 {[%clk 0:00:40]} 31. Nc3 {[%clk 0:01:23]}  b5 {[%clk 0:00:36]} 32. Ra2 {[%clk 0:01:14]}  Nb2 {[%clk 0:00:30]} 33. Rxb2 {[%clk 0:01:01]}  Rxc3 {[%clk 0:00:29]} 34. Qd2 {[%clk 0:00:58]}  b4 {[%clk 0:00:29]} 35. Bf5 {[%clk 0:00:50]}  Qxa4 {[%clk 0:00:27]} 36. Ra2 {[%clk 0:00:46]}  Qb5 {[%clk 0:00:26]} 37. Rb2 {[%clk 0:00:43]}  a5 {[%clk 0:00:26]} 38. Qxc3 {[%clk 0:00:43]}  bxc3 {[%clk 0:00:17]} 39. Rxb5 {[%clk 0:00:42]}  c2 {[%clk 0:00:14]} 40. Rxa5 {[%clk 0:00:40]}  c1=Q {[%clk 0:00:13]} 41. Ra8+ {[%clk 0:00:39]}  Bf8 {[%clk 0:00:13]} 42. Rd8 {[%clk 0:00:37]}  g6 {[%clk 0:00:12]} 43. Bg4 {[%clk 0:00:28]}  Qe1 {[%clk 0:00:12]} 44. Bf3 {[%clk 0:00:27]}  h5 {[%clk 0:00:12]} 45. d6 {[%clk 0:00:27]}  Kg7 {[%clk 0:00:12]} 46. d7 {[%clk 0:00:26]}  Qd2 {[%clk 0:00:12]} 47. Be2 {[%clk 0:00:22]}  Be7 {[%clk 0:00:11]} 48. Re8 {[%clk 0:00:14]}  Qxd7 {[%clk 0:00:10]} 49. Ra8 {[%clk 0:00:12]}  Qd4 {[%clk 0:00:10]} 50. Bf3 {[%clk 0:00:12]}  Qd3 {[%clk 0:00:09]} 51. Ra7 {[%clk 0:00:10]}  Bf6 {[%clk 0:00:09]} 52. Ra4 {[%clk 0:00:08]}  Qd2 {[%clk 0:00:09]} 53. Ra3 {[%clk 0:00:07]}  Be7 {[%clk 0:00:08]} 54. Re3 {[%clk 0:00:06]}  Bc5 {[%clk 0:00:08]} 55. Re2 {[%clk 0:00:07]}  Qd3 {[%clk 0:00:08]} 56. Kf1 {[%clk 0:00:05]}  Bd4 {[%clk 0:00:08]} 57. Kg2 {[%clk 0:00:05]}  f5 {[%clk 0:00:07]} 58. Ra2 {[%clk 0:00:05]}  fxe4 {[%clk 0:00:07]} 59. Be2 {[%clk 0:00:05]}  Qc3 {[%clk 0:00:06]} 60. g4 {[%clk 0:00:03]}  hxg4 {[%clk 0:00:05]} 61. hxg4 {[%clk 0:00:04]}  g5 {[%clk 0:00:05]} 62. Kg1 {[%clk 0:00:04]}  Qc1+ {[%clk 0:00:05]} 63. Kg2 {[%clk 0:00:04]}  Qf4 {[%clk 0:00:05]} 64. Kf1 {[%clk 0:00:04]}  Qxf2# {[%clk 0:00:05]} 0-1


[Site "https://www.chess.com"]

[Event "Titled Tuesday Blitz March 22 Late 2022"]
[White "Clawitter, Craig"]
[Black "Ferreira, Vitor Hugo Vieira"]
[WhiteFideId "2023105"]
[BlackFideId "2119765"]
[WhiteElo "2241"]
[BlackElo "2165"]
[Result "0-1"]
[Round "11"]
[TimeControl "180+1"]
[Date "2022.03.22"]
[WhiteClock "0:00:01"]
[BlackClock "0:01:47"]

1. e4 {[%clk 0:03:00]}  c5 {[%clk 0:02:50]} 2. Nf3 {[%clk 0:03:00]}  d6 {[%clk 0:02:48]} 3. d4 {[%clk 0:03:01]}  cxd4 {[%clk 0:02:49]} 4. Nxd4 {[%clk 0:03:02]}  Nf6 {[%clk 0:02:49]} 5. Nc3 {[%clk 0:03:02]}  a6 {[%clk 0:02:50]} 6. Be3 {[%clk 0:03:02]}  e5 {[%clk 0:02:50]} 7. Nb3 {[%clk 0:03:03]}  Be6 {[%clk 0:02:50]} 8. f3 {[%clk 0:03:03]}  h5 {[%clk 0:02:51]} 9. Nd5 {[%clk 0:03:02]}  Bxd5 {[%clk 0:02:50]} 10. exd5 {[%clk 0:03:03]}  g6 {[%clk 0:02:47]} 11. Be2 {[%clk 0:03:02]}  Bg7 {[%clk 0:02:47]} 12. O-O {[%clk 0:03:01]}  O-O {[%clk 0:02:47]} 13. Qd2 {[%clk 0:02:48]}  b6 {[%clk 0:02:47]} 14. c4 {[%clk 0:02:36]}  Nbd7 {[%clk 0:02:46]} 15. Bh6 {[%clk 0:02:35]}  Nc5 {[%clk 0:02:46]} 16. Rae1 {[%clk 0:01:57]}  Re8 {[%clk 0:02:42]} 17. Bxg7 {[%clk 0:01:57]}  Kxg7 {[%clk 0:02:42]} 18. Nc1 {[%clk 0:01:41]}  e4 {[%clk 0:02:39]} 19. fxe4 {[%clk 0:01:37]}  Nfxe4 {[%clk 0:02:39]} 20. Qd4+ {[%clk 0:01:35]}  Kg8 {[%clk 0:02:39]} 21. Nd3 {[%clk 0:01:31]}  Nxd3 {[%clk 0:02:36]} 22. Bxd3 {[%clk 0:01:31]}  Nc5 {[%clk 0:02:36]} 23. Bc2 {[%clk 0:01:17]}  a5 {[%clk 0:02:31]} 24. Qf4 {[%clk 0:01:11]}  Qd7 {[%clk 0:02:24]} 25. Qh6 {[%clk 0:01:03]}  Rxe1 {[%clk 0:02:22]} 26. Rxe1 {[%clk 0:01:03]}  Re8 {[%clk 0:02:23]} 27. Qd2 {[%clk 0:00:38]}  Rxe1+ {[%clk 0:02:22]} 28. Qxe1 {[%clk 0:00:38]}  Qg4 {[%clk 0:02:22]} 29. b3 {[%clk 0:00:32]}  Qd4+ {[%clk 0:02:20]} 30. Kf1 {[%clk 0:00:23]}  Qb2 {[%clk 0:02:15]} 31. Qb1 {[%clk 0:00:19]}  Qe5 {[%clk 0:02:15]} 32. Qe1 {[%clk 0:00:18]}  Qxh2 {[%clk 0:02:13]} 33. Qe8+ {[%clk 0:00:17]}  Kg7 {[%clk 0:02:13]} 34. Qd8 {[%clk 0:00:16]}  Qh1+ {[%clk 0:02:09]} 35. Kf2 {[%clk 0:00:16]}  Qc1 {[%clk 0:02:08]} 36. Bxg6 {[%clk 0:00:06]}  Qf4+ {[%clk 0:02:07]} 37. Kg1 {[%clk 0:00:05]}  fxg6 {[%clk 0:02:04]} 38. Qxb6 {[%clk 0:00:04]}  Ne4 {[%clk 0:02:02]} 39. Qd4+ {[%clk 0:00:02]}  Kh7 {[%clk 0:01:59]} 40. Qa7+ {[%clk 0:00:01]}  Kh6 {[%clk 0:01:58]} 41. Qxa5 {[%clk 0:00:01]}  Qf2+ {[%clk 0:01:56]} 42. Kh2 {[%clk 0:00:01]}  Qg3+ {[%clk 0:01:49]} 43. Kg1 {[%clk 0:00:01]}  Nf2 {[%clk 0:01:47]} 0-1


[Site "https://www.chess.com"]

[Event "Titled Tuesday Blitz March 22 Late 2022"]
[White "Costachi, Mihnea"]
[Black "Rostovtsev, Dmitry"]
[WhiteFideId "1217518"]
[BlackFideId "34278320"]
[WhiteElo "2464"]
[BlackElo "2359"]
[Result "0-1"]
[Round "11"]
[TimeControl "180+1"]
[Date "2022.03.22"]
[WhiteClock "0:00:16"]
[BlackClock "0:00:02"]

1. e4 {[%clk 0:03:00]}  e5 {[%clk 0:02:58]} 2. Nf3 {[%clk 0:02:58]}  Nc6 {[%clk 0:02:58]} 3. Bc4 {[%clk 0:02:57]}  Bc5 {[%clk 0:02:57]} 4. d3 {[%clk 0:02:57]}  Nf6 {[%clk 0:02:57]} 5. c3 {[%clk 0:02:55]}  d6 {[%clk 0:02:57]} 6. Bg5 {[%clk 0:02:56]}  h6 {[%clk 0:02:57]} 7. Bh4 {[%clk 0:02:56]}  O-O {[%clk 0:02:54]} 8. a4 {[%clk 0:02:53]}  a6 {[%clk 0:02:50]} 9. b4 {[%clk 0:02:53]}  Bb6 {[%clk 0:02:49]} 10. a5 {[%clk 0:02:52]}  Ba7 {[%clk 0:02:50]} 11. Nbd2 {[%clk 0:02:53]}  Be6 {[%clk 0:02:46]} 12. O-O {[%clk 0:02:51]}  g5 {[%clk 0:02:46]} 13. Bg3 {[%clk 0:02:50]}  Kg7 {[%clk 0:02:37]} 14. Qe2 {[%clk 0:02:44]}  Nh5 {[%clk 0:02:28]} 15. d4 {[%clk 0:02:40]}  Nxg3 {[%clk 0:02:25]} 16. fxg3 {[%clk 0:02:34]}  exd4 {[%clk 0:02:25]} 17. Kh1 {[%clk 0:02:34]}  dxc3 {[%clk 0:02:24]} 18. Nb3 {[%clk 0:02:34]}  Qe7 {[%clk 0:02:13]} 19. Qd3 {[%clk 0:02:29]}  Kg8 {[%clk 0:02:01]} 20. Qxc3 {[%clk 0:02:27]}  Bxc4 {[%clk 0:02:01]} 21. Qxc4 {[%clk 0:02:27]}  Qe6 {[%clk 0:02:02]} 22. Qc3 {[%clk 0:01:29]}  Qxe4 {[%clk 0:02:01]} 23. Nbd2 {[%clk 0:01:29]}  Qg6 {[%clk 0:01:35]} 24. Rae1 {[%clk 0:01:29]}  Rfe8 {[%clk 0:01:35]} 25. Qc4 {[%clk 0:01:20]}  Re6 {[%clk 0:01:15]} 26. b5 {[%clk 0:01:18]}  axb5 {[%clk 0:01:04]} 27. Qxb5 {[%clk 0:01:19]}  Rxe1 {[%clk 0:00:36]} 28. Rxe1 {[%clk 0:01:18]}  Bf2 {[%clk 0:00:15]} 29. Qxb7 {[%clk 0:01:14]}  Rxa5 {[%clk 0:00:07]} 30. Rf1 {[%clk 0:01:00]}  Qc2 {[%clk 0:00:08]} 31. Rxf2 {[%clk 0:00:45]}  Ra1+ {[%clk 0:00:08]} 32. Rf1 {[%clk 0:00:45]}  Rxf1+ {[%clk 0:00:08]} 33. Nxf1 {[%clk 0:00:46]}  Qd1 {[%clk 0:00:03]} 34. Nd2 {[%clk 0:00:41]}  Nd4 {[%clk 0:00:02]} 35. Qa8+ {[%clk 0:00:42]}  Kg7 {[%clk 0:00:01]} 36. Qa3 {[%clk 0:00:30]}  Ne2 {[%clk 0:00:01]} 37. Qb2+ {[%clk 0:00:22]}  Kg8 {[%clk 0:00:01]} 38. Qf6 {[%clk 0:00:20]}  Qe1 {[%clk 0:00:02]} 39. Qxh6 {[%clk 0:00:18]}  Qf2 {[%clk 0:00:02]} 40. Qxg5+ {[%clk 0:00:18]}  Kf8 {[%clk 0:00:02]} 41. Qe3 {[%clk 0:00:19]}  Qe1 {[%clk 0:00:01]} 42. Qh6+ {[%clk 0:00:18]}  Kg8 {[%clk 0:00:02]} 43. Qg5+ {[%clk 0:00:18]}  Kf8 {[%clk 0:00:02]} 44. h4 {[%clk 0:00:17]}  c5 {[%clk 0:00:03]} 45. Qd8+ {[%clk 0:00:16]}  Kg7 {[%clk 0:00:03]} 46. Qxd6 {[%clk 0:00:17]}  Qf2 {[%clk 0:00:02]} 47. Qe5+ {[%clk 0:00:16]}  f6 {[%clk 0:00:02]} 48. Qe7+ {[%clk 0:00:15]}  Kg6 {[%clk 0:00:02]} 49. Qe8+ {[%clk 0:00:15]}  Kh7 {[%clk 0:00:02]} 50. Qh5+ {[%clk 0:00:15]}  Kg7 {[%clk 0:00:02]} 51. Qg4+ {[%clk 0:00:15]}  Kh8 {[%clk 0:00:02]} 52. h5 {[%clk 0:00:16]}  Qg1# {[%clk 0:00:02]} 0-1


[Site "https://www.chess.com"]

[Event "Titled Tuesday Blitz March 22 Late 2022"]
[White "Deac, Bogdan-Daniel"]
[Black "Pichot, Alan"]
[WhiteFideId "1226380"]
[BlackFideId "110973"]
[WhiteElo "2646"]
[BlackElo "2579"]
[Result "1-0"]
[Round "11"]
[TimeControl "180+1"]
[Date "2022.03.22"]
[WhiteClock "0:00:03"]
[BlackClock "0:00:42"]

1. d4 {[%clk 0:03:00]}  Nf6 {[%clk 0:02:58]} 2. c4 {[%clk 0:03:01]}  e6 {[%clk 0:02:59]} 3. Nf3 {[%clk 0:03:02]}  d5 {[%clk 0:02:59]} 4. g3 {[%clk 0:03:02]}  Be7 {[%clk 0:02:58]} 5. Bg2 {[%clk 0:03:02]}  O-O {[%clk 0:02:59]} 6. O-O {[%clk 0:03:01]}  dxc4 {[%clk 0:03:00]} 7. Qc2 {[%clk 0:03:00]}  a6 {[%clk 0:03:00]} 8. a4 {[%clk 0:02:55]}  Bd7 {[%clk 0:03:01]} 9. Qxc4 {[%clk 0:02:53]}  Bc6 {[%clk 0:03:01]} 10. Be3 {[%clk 0:02:54]}  a5 {[%clk 0:03:00]} 11. Nc3 {[%clk 0:02:51]}  Na6 {[%clk 0:03:00]} 12. Rfd1 {[%clk 0:02:51]}  Nb4 {[%clk 0:03:00]} 13. Rac1 {[%clk 0:02:51]}  Bxf3 {[%clk 0:02:58]} 14. Bxf3 {[%clk 0:02:50]}  c6 {[%clk 0:02:59]} 15. Bd2 {[%clk 0:02:44]}  h6 {[%clk 0:02:55]} 16. e4 {[%clk 0:02:43]}  Qb6 {[%clk 0:02:44]} 17. Be3 {[%clk 0:02:38]}  Qa6 {[%clk 0:02:44]} 18. Qb3 {[%clk 0:02:38]}  Rfd8 {[%clk 0:02:43]} 19. Be2 {[%clk 0:02:15]}  Qa7 {[%clk 0:02:44]} 20. d5 {[%clk 0:02:14]}  Bc5 {[%clk 0:02:44]} 21. Bxc5 {[%clk 0:02:14]}  Qxc5 {[%clk 0:02:45]} 22. dxe6 {[%clk 0:02:15]}  fxe6 {[%clk 0:02:39]} 23. Qxe6+ {[%clk 0:02:14]}  Kh8 {[%clk 0:02:40]} 24. Qc4 {[%clk 0:01:46]}  Qe7 {[%clk 0:02:26]} 25. Kg2 {[%clk 0:01:33]}  Re8 {[%clk 0:02:24]} 26. f3 {[%clk 0:01:29]}  Nd7 {[%clk 0:02:10]} 27. Rd2 {[%clk 0:01:07]}  Ne5 {[%clk 0:02:00]} 28. Qb3 {[%clk 0:01:05]}  g5 {[%clk 0:02:00]} 29. Rcd1 {[%clk 0:01:00]}  Rf8 {[%clk 0:02:00]} 30. Rd6 {[%clk 0:00:46]}  Rf6 {[%clk 0:01:58]} 31. Rxf6 {[%clk 0:00:45]}  Qxf6 {[%clk 0:01:58]} 32. Na2 {[%clk 0:00:45]}  Qe7 {[%clk 0:01:39]} 33. Nxb4 {[%clk 0:00:37]}  axb4 {[%clk 0:01:40]} 34. Qc2 {[%clk 0:00:30]}  b6 {[%clk 0:01:34]} 35. b3 {[%clk 0:00:28]}  c5 {[%clk 0:01:24]} 36. Qb2 {[%clk 0:00:19]}  Kh7 {[%clk 0:01:25]} 37. Rd5 {[%clk 0:00:19]}  Nc6 {[%clk 0:01:25]} 38. Bc4 {[%clk 0:00:09]}  Rf8 {[%clk 0:01:22]} 39. Bb5 {[%clk 0:00:07]}  Qf6 {[%clk 0:00:47]} 40. Qxf6 {[%clk 0:00:07]}  Rxf6 {[%clk 0:00:47]} 41. e5 {[%clk 0:00:07]}  Re6 {[%clk 0:00:46]} 42. Bd3+ {[%clk 0:00:06]}  Kg7 {[%clk 0:00:46]} 43. f4 {[%clk 0:00:07]}  Nd4 {[%clk 0:00:45]} 44. Bc4 {[%clk 0:00:05]}  gxf4 {[%clk 0:00:44]} 45. Rxd4 {[%clk 0:00:03]}  f3+ {[%clk 0:00:39]} 46. Kf2 {[%clk 0:00:02]}  Rxe5 {[%clk 0:00:40]} 47. Rd7+ {[%clk 0:00:02]}  Kg6 {[%clk 0:00:40]} 48. Rd6+ {[%clk 0:00:02]}  Kg5 {[%clk 0:00:40]} 49. Kxf3 {[%clk 0:00:03]}  Rf5+ {[%clk 0:00:41]} 50. Kg2 {[%clk 0:00:03]}  Rf6 {[%clk 0:00:42]} 51. h4+ {[%clk 0:00:03]} 1-0


[Site "https://www.chess.com"]

[Event "Titled Tuesday Blitz March 22 Late 2022"]
[White "Debray, Christopher"]
[Black "Oro, Luis"]
[WhiteFideId "630810"]
[BlackFideId "104094"]
[WhiteElo "2393"]
[BlackElo "2335"]
[Result "0-1"]
[Round "11"]
[TimeControl "180+1"]
[Date "2022.03.22"]
[WhiteClock "0:01:00"]
[BlackClock "0:02:20"]

1. e4 {[%clk 0:02:58]}  c5 {[%clk 0:02:57]} 2. c3 {[%clk 0:02:58]}  Nf6 {[%clk 0:02:57]} 3. e5 {[%clk 0:02:57]}  Nd5 {[%clk 0:02:57]} 4. d4 {[%clk 0:02:56]}  cxd4 {[%clk 0:02:58]} 5. Nf3 {[%clk 0:02:56]}  Nc6 {[%clk 0:02:57]} 6. cxd4 {[%clk 0:02:51]}  d6 {[%clk 0:02:56]} 7. Bc4 {[%clk 0:02:49]}  Nb6 {[%clk 0:02:55]} 8. Bb3 {[%clk 0:02:49]}  g6 {[%clk 0:02:46]} 9. Qe2 {[%clk 0:02:43]}  d5 {[%clk 0:02:39]} 10. O-O {[%clk 0:02:36]}  Bg7 {[%clk 0:02:37]} 11. Nc3 {[%clk 0:02:28]}  Bg4 {[%clk 0:02:36]} 12. Be3 {[%clk 0:02:07]}  O-O {[%clk 0:02:31]} 13. h3 {[%clk 0:01:57]}  Bxf3 {[%clk 0:02:30]} 14. Qxf3 {[%clk 0:01:58]}  e6 {[%clk 0:02:30]} 15. Nb5 {[%clk 0:01:46]}  Qd7 {[%clk 0:02:24]} 16. Nd6 {[%clk 0:01:42]}  f6 {[%clk 0:02:22]} 17. Qg3 {[%clk 0:01:00]}  fxe5 {[%clk 0:02:20]} 0-1


[Site "https://www.chess.com"]

[Event "Titled Tuesday Blitz March 22 Late 2022"]
[White "Dolzhykova, Kateryna"]
[Black "Janaszak, Dawid"]
[WhiteFideId "14113414"]
[BlackFideId "1119206"]
[WhiteElo "2184"]
[BlackElo "2199"]
[Result "1-0"]
[Round "11"]
[TimeControl "180+1"]
[Date "2022.03.22"]
[WhiteClock "0:00:39"]
[BlackClock "0:00:44"]

1. e4 {[%clk 0:03:00]}  c5 {[%clk 0:03:00]} 2. Nf3 {[%clk 0:03:00]}  Nc6 {[%clk 0:03:00]} 3. Bb5 {[%clk 0:03:00]}  Na5 {[%clk 0:02:59]} 4. O-O {[%clk 0:02:57]}  a6 {[%clk 0:02:59]} 5. Be2 {[%clk 0:02:57]}  b5 {[%clk 0:03:00]} 6. Re1 {[%clk 0:02:57]}  Bb7 {[%clk 0:03:00]} 7. e5 {[%clk 0:02:51]}  d5 {[%clk 0:02:58]} 8. d4 {[%clk 0:02:50]}  e6 {[%clk 0:02:53]} 9. Bg5 {[%clk 0:02:45]}  Qb6 {[%clk 0:02:52]} 10. Nbd2 {[%clk 0:02:39]}  cxd4 {[%clk 0:02:48]} 11. Nb3 {[%clk 0:02:38]}  Nxb3 {[%clk 0:02:40]} 12. axb3 {[%clk 0:02:38]}  Bb4 {[%clk 0:02:38]} 13. Bd2 {[%clk 0:02:36]}  Bc5 {[%clk 0:02:24]} 14. b4 {[%clk 0:02:23]}  Be7 {[%clk 0:02:21]} 15. Ra3 {[%clk 0:02:23]}  Nh6 {[%clk 0:02:16]} 16. Bxh6 {[%clk 0:02:15]}  gxh6 {[%clk 0:02:17]} 17. Qd2 {[%clk 0:02:15]}  h5 {[%clk 0:02:04]} 18. Nxd4 {[%clk 0:02:14]}  h4 {[%clk 0:01:53]} 19. Bh5 {[%clk 0:02:13]}  Rg8 {[%clk 0:01:40]} 20. Rf3 {[%clk 0:02:12]}  Rg7 {[%clk 0:01:40]} 21. Qh6 {[%clk 0:01:55]}  Bf8 {[%clk 0:01:39]} 22. Qxe6+ {[%clk 0:01:48]}  Qxe6 {[%clk 0:01:37]} 23. Nxe6 {[%clk 0:01:49]}  Rg6 {[%clk 0:01:12]} 24. Bxg6 {[%clk 0:01:40]}  hxg6 {[%clk 0:01:13]} 25. Nc7+ {[%clk 0:01:40]}  Ke7 {[%clk 0:01:13]} 26. Nxa8 {[%clk 0:01:41]}  Bxa8 {[%clk 0:01:14]} 27. e6 {[%clk 0:01:21]}  f5 {[%clk 0:01:10]} 28. Rf4 {[%clk 0:01:09]}  Kf6 {[%clk 0:00:55]} 29. Rxh4 {[%clk 0:01:06]}  Bc6 {[%clk 0:00:55]} 30. Rh7 {[%clk 0:00:52]}  Bxb4 {[%clk 0:00:51]} 31. c3 {[%clk 0:00:49]}  Bc5 {[%clk 0:00:51]} 32. e7 {[%clk 0:00:43]}  b4 {[%clk 0:00:43]} 33. e8=Q {[%clk 0:00:40]}  Bxe8 {[%clk 0:00:43]} 34. Rxe8 {[%clk 0:00:41]}  bxc3 {[%clk 0:00:43]} 35. bxc3 {[%clk 0:00:41]}  d4 {[%clk 0:00:43]} 36. cxd4 {[%clk 0:00:41]}  Bxd4 {[%clk 0:00:44]} 37. Ra8 {[%clk 0:00:39]}  Kg5 {[%clk 0:00:44]} 38. Rxa6 {[%clk 0:00:39]} 1-0


[Site "https://www.chess.com"]